Workbook

Sheet Summary
B3: Architecture Diagnostic Report (ADR)
B4: Report Period: 08/29/2011
B6: Issue Summary | I6: Severity Summary
B7: Percentages | F7: All Issues by Severity | I7: Percentages
F8: Severity | G8: Count
F9: Critical | G9: =I143 -> 83
F10: Warning | G10: =I262 -> 39
F11: Info | G11: =I381 -> 8
F12: Total Issues | G12: =SUM(G9:G11) -> 130
F19: URL Summary
F20: Type | G20: # of URLs
F21: Issues | G21: ='Report Data'!L8 -> 22
F22: Non-issues | G22: ='Report Data'!L9 -> 0
F23: Total URLs Crawled | G23: =SUM(G21:G22) -> 22
B25: Issue Breakdown by Severity
B26: Critical
B42: CRITICAL | C42: Tab Names | D42: Long Desc | I42: Issue Count | J42: Critical % | K42: Total Issue %
C43: Duplicate Title Tags | D43: Pages found with duplicate title tags | I43: 18 | J43: =I43/$I$143 -> 0.2168674699 | K43: =IF($G$12<>0,I43/$G$12,0) -> 0.1384615385
C44: Duplicate H1 Tags | D44: Pages found with duplicate H1 tags | I44: 18 | J44: =I44/$I$143 -> 0.2168674699 | K44: =IF($G$12<>0,I44/$G$12,0) -> 0.1384615385
C45: Missing Meta Description | D45: Pages found missing a meta description tag | I45: 17 | J45: =I45/$I$143 -> 0.2048192771 | K45: =IF($G$12<>0,I45/$G$12,0) -> 0.1307692308
C46: Multiple H1 Tags | D46: Pages found with multiple H1 tags | I46: 5 | J46: =I46/$I$143 -> 0.06024096386 | K46: =IF($G$12<>0,I46/$G$12,0) -> 0.03846153846
C47: Multiple Title Tags | D47: Pages found with multiple title tags | I47: 4 | J47: =I47/$I$143 -> 0.04819277108 | K47: =IF($G$12<>0,I47/$G$12,0) -> 0.03076923077
C48: Long Title Tags | D48: Pages found with title tags longer than 150 characters | I48: 3 | J48: =I48/$I$143 -> 0.03614457831 | K48: =IF($G$12<>0,I48/$G$12,0) -> 0.02307692308
C49: Missing H1 Tag | D49: Pages found missing an H1 tag | I49: 3 | J49: =I49/$I$143 -> 0.03614457831 | K49: =IF($G$12<>0,I49/$G$12,0) -> 0.02307692308
C50: 404s | D50: Page Error found - Page Not Found - 404 Response Code | I50: 3 | J50: =I50/$I$143 -> 0.03614457831 | K50: =IF($G$12<>0,I50/$G$12,0) -> 0.02307692308
C51: Missing Title Tags | D51: Pages found missing a title tag | I51: 3 | J51: =I51/$I$143 -> 0.03614457831 | K51: =IF($G$12<>0,I51/$G$12,0) -> 0.02307692308
C52: Duplicate Meta Description | D52: Pages found with duplicate meta description tags | I52: 2 | J52: =I52/$I$143 -> 0.02409638554 | K52: =IF($G$12<>0,I52/$G$12,0) -> 0.01538461538
C53: Short Meta Descriptions | D53: Pages found with meta description tag shorter than 125 characters | I53: 2 | J53: =I53/$I$143 -> 0.02409638554 | K53: =IF($G$12<>0,I53/$G$12,0) -> 0.01538461538
C54: Appended Parameters | D54: URLs found with appended parameters | I54: 2 | J54: =I54/$I$143 -> 0.02409638554 | K54: =IF($G$12<>0,I54/$G$12,0) -> 0.01538461538
C55: Multiple Meta Description | D55: Pages found with multiple meta description tags | I55: 2 | J55: =I55/$I$143 -> 0.02409638554 | K55: =IF($G$12<>0,I55/$G$12,0) -> 0.01538461538
C56: Long Meta Descriptions | D56: Pages found with meta descriptions longer than 400 characters | I56: 1 | J56: =I56/$I$143 -> 0.01204819277 | K56: =IF($G$12<>0,I56/$G$12,0) -> 0.007692307692
C57: 0 | J57: =I57/$I$143 ->  | K57: =IF($G$12<>0,I57/$G$12,0) -> 
C58: 0
C59: 0
C60: 0
C61: 0
C62: 0
C63: 0
C64: 0
C65: 0
C66: 0
C67: 0
C68: 0
C69: 0
C70: 0
C71: 0
C72: 0
C73: 0
C74: 0
C75: 0
C76: 0
C77: 0
C78: 0
C79: 0
C80: 0
C81: 0
C82: 0
C83: 0
C84: 0
C85: 0
C86: 0
C87: 0
C88: 0
C89: 0
C90: 0
C91: 0
C92: 0
C93: 0
C94: 0
C95: 0
C96: 0
C97: 0
C98: 0
C99: 0
C100: 0
C101: 0
C102: 0
C103: 0
C104: 0
C105: 0
C106: 0
C107: 0
C108: 0 | J108: =I108/$I$143 ->  | K108: =IF($G$12<>0,I108/$G$12,0) -> 
C109: 0
C110: 0
C111: 0
C112: 0
C113: 0
C114: 0
C115: 0
C116: 0
C117: 0
C118: 0
C119: 0
C120: 0
C121: 0
C122: 0
C123: 0
C124: 0
C125: 0
C126: 0
C127: 0
C128: 0
C129: 0
C130: 0
C131: 0
C132: 0
C133: 0
C134: 0
C135: 0
C136: 0
C137: 0
C138: 0
C139: 0
C140: 0
C141: 0
C142: 0
I143: =SUM(I43:I56) -> 83 | J143: =IFERROR(I143/$I$143,0) -> 1 | K143: =IFERROR(IF($G$12<>0,I143/$G$12,0),0) -> 0.6384615385
B145: Warning
E147: =SUM(E53:E66) -> 0
B161: WARNING | C161: Tab Names | D161: Long Desc | I161: Issue Count | J161: Warning % | K161: Total Issue %
C162: Missing Meta Keywords | D162: Pages found missing a meta keyword tag | I162: 14 | J162: =I162/$I$262 -> 0.358974359 | K162: =IF($G$12<>0,I162/$G$12,0) -> 0.1076923077
C163: Short Title Tags | D163: Pages found with title tag shorter than 20 characters | I163: 12 | J163: =I163/$I$262 -> 0.3076923077 | K163: =IF($G$12<>0,I163/$G$12,0) -> 0.09230769231
C164: Duplicate Meta Keywords | D164: Pages found with duplicate meta keyword tags | I164: 8 | J164: =I164/$I$262 -> 0.2051282051 | K164: =IF($G$12<>0,I164/$G$12,0) -> 0.06153846154
C165: Multiple Meta Keywords | D165: Pages found with multiple meta keyword tags | I165: 3 | J165: =I165/$I$262 -> 0.07692307692 | K165: =IF($G$12<>0,I165/$G$12,0) -> 0.02307692308
C166: URL Capitalization | D166: URLs found with capital lettering | I166: 2 | J166: =I166/$I$262 -> 0.05128205128 | K166: =IF($G$12<>0,I166/$G$12,0) -> 0.01538461538
C167: 0 | J167: =I167/$I$262 ->  | K167: =IF($G$12<>0,I167/$G$12,0) -> 
C168: 0 | J168: =I168/$I$262 ->  | K168: =IF($G$12<>0,I168/$G$12,0) -> 
C169: 0
C170: 0
C171: 0
C172: 0
C173: 0
C174: 0
C175: 0
C176: 0
C177: 0
C178: 0
C179: 0
C180: 0
C181: 0
C182: 0
C183: 0
C184: 0
C185: 0
C186: 0
C187: 0
C188: 0
C189: 0
C190: 0
C191: 0
C192: 0
C193: 0
C194: 0
C195: 0
C196: 0
C197: 0
C198: 0
C199: 0
C200: 0
C201: 0
C202: 0
C203: 0
C204: 0
C205: 0
C206: 0
C207: 0
C208: 0
C209: 0
C210: 0
C211: 0
C212: 0
C213: 0
C214: 0
C215: 0
C216: 0
C217: 0
C218: 0
C219: 0
C220: 0
C221: 0
C222: 0
C223: 0
C224: 0
C225: 0
C226: 0
C227: 0 | K227: =IF($G$12<>0,I227/$G$12,0) -> 
C228: 0
C229: 0
C230: 0
C231: 0
C232: 0 | J232: =I232/$I$262 -> 
C233: 0
C234: 0
C235: 0
C236: 0
C237: 0
C238: 0
C239: 0
C240: 0
... 126 more rows

Sheet Duplicate H1 Tags
B3: Duplicate H1 Tags
B5: Pages found with duplicate H1 tags
B6: Total Count: 18
B8: Issue Severity: Critical
B9: URL | C9: Duplicate
B10: http://ec2-50-19-31-202.compute-1.amazonaws.com/lost/multipleh1.html | C10: 77aaaaaaaaaaaaaaaaaaaaaaaaaaaaaaaaaaaaaaaaaaaaaaaaaaaaaaaaaaaaaaaaaaaaaaaaaa--||TSA||--76aaaaaaaaaaaaaaaaaaaaaaaaaaaaaaaaaaaaaaaaaaaaaaaaaaaaaaaaaaaaaaaaaaaaaaaaa--||TSA||--75aaaaaaaaaaaaaaaaaaaaaaaaaaaaaaaaaaaaaaaaaaaaaaaaaaaaaaaaaaaaaaaaaaaaaaaa--||TSA||--15aaaaaaaaaaaaa--||TSA||--14aaaaaaaaaaaa
B11: http://ec2-50-19-31-202.compute-1.amazonaws.com/lost/multipleh1titlemk.html | C11: 77aaaaaaaaaaaaaaaaaaaaaaaaaaaaaaaaaaaaaaaaaaaaaaaaaaaaaaaaaaaaaaaaaaaaaaaaaa--||TSA||--76aaaaaaaaaaaaaaaaaaaaaaaaaaaaaaaaaaaaaaaaaaaaaaaaaaaaaaaaaaaaaaaaaaaaaaaaa--||TSA||--75aaaaaaaaaaaaaaaaaaaaaaaaaaaaaaaaaaaaaaaaaaaaaaaaaaaaaaaaaaaaaaaaaaaaaaaa--||TSA||--15aaaaaaaaaaaaa--||TSA||--14aaaaaaaaaaaa
B12: http://ec2-50-19-31-202.compute-1.amazonaws.com/lost/multipleh1titlemkmd.html | C12: 77aaaaaaaaaaaaaaaaaaaaaaaaaaaaaaaaaaaaaaaaaaaaaaaaaaaaaaaaaaaaaaaaaaaaaaaaaa--||TSA||--76aaaaaaaaaaaaaaaaaaaaaaaaaaaaaaaaaaaaaaaaaaaaaaaaaaaaaaaaaaaaaaaaaaaaaaaaa--||TSA||--75aaaaaaaaaaaaaaaaaaaaaaaaaaaaaaaaaaaaaaaaaaaaaaaaaaaaaaaaaaaaaaaaaaaaaaaa--||TSA||--15aaaaaaaaaaaaa--||TSA||--14aaaaaaaaaaaa
B13: http://ec2-50-19-31-202.compute-1.amazonaws.com/lost/Copyofmultipleh1titlemkmd.html | C13: 77aaaaaaaaaaaaaaaaaaaaaaaaaaaaaaaaaaaaaaaaaaaaaaaaaaaaaaaaaaaaaaaaaaaaaaaaaa--||TSA||--76aaaaaaaaaaaaaaaaaaaaaaaaaaaaaaaaaaaaaaaaaaaaaaaaaaaaaaaaaaaaaaaaaaaaaaaaa--||TSA||--75aaaaaaaaaaaaaaaaaaaaaaaaaaaaaaaaaaaaaaaaaaaaaaaaaaaaaaaaaaaaaaaaaaaaaaaa--||TSA||--15aaaaaaaaaaaaa--||TSA||--14aaaaaaaaaaaa
B14: http://ec2-50-19-31-202.compute-1.amazonaws.com/lost/multipleh1title.html | C14: 77aaaaaaaaaaaaaaaaaaaaaaaaaaaaaaaaaaaaaaaaaaaaaaaaaaaaaaaaaaaaaaaaaaaaaaaaaa--||TSA||--76aaaaaaaaaaaaaaaaaaaaaaaaaaaaaaaaaaaaaaaaaaaaaaaaaaaaaaaaaaaaaaaaaaaaaaaaa--||TSA||--75aaaaaaaaaaaaaaaaaaaaaaaaaaaaaaaaaaaaaaaaaaaaaaaaaaaaaaaaaaaaaaaaaaaaaaaa--||TSA||--15aaaaaaaaaaaaa--||TSA||--14aaaaaaaaaaaa
B15: http://ec2-50-19-31-202.compute-1.amazonaws.com/lost/shorth1.html | C15: 14aaaaaaaaaaaa
B16: http://ec2-50-19-31-202.compute-1.amazonaws.com/lost/shorth1titlemkmd.html | C16: 14aaaaaaaaaaaa
B17: http://ec2-50-19-31-202.compute-1.amazonaws.com/lost/Copyofshorth1titlemkmd.html | C17: 14aaaaaaaaaaaa
B18: http://ec2-50-19-31-202.compute-1.amazonaws.com/lost/shorth1titlemk.html | C18: 14aaaaaaaaaaaa
B19: http://ec2-50-19-31-202.compute-1.amazonaws.com/lost/shorth1title.html | C19: 14aaaaaaaaaaaa
B20: http://ec2-50-19-31-202.compute-1.amazonaws.com/lost/ | C20: This is a test Page 1
B21: http://ec2-50-19-31-202.compute-1.amazonaws.com/lost/index.html | C21: This is a test Page 1
B22: http://ec2-50-19-31-202.compute-1.amazonaws.com/lost/page4.html | C22: This is a test Page 4 CSS
B23: http://ec2-50-19-31-202.compute-1.amazonaws.com/lost/page4.html?a=1&b=2&c=3&d=4&e=5&f=6&g=7 | C23: This is a test Page 4 CSS
B24: http://ec2-50-19-31-202.compute-1.amazonaws.com/lost/longh1titlemkmd.html | C24: 76aaaaaaaaaaaaaaaaaaaaaaaaaaaaaaaaaaaaaaaaaaaaaaaaaaaaaaaaaaaaaaaaaaaaaaaaa
B25: http://ec2-50-19-31-202.compute-1.amazonaws.com/lost/longh1titlemk.html | C25: 76aaaaaaaaaaaaaaaaaaaaaaaaaaaaaaaaaaaaaaaaaaaaaaaaaaaaaaaaaaaaaaaaaaaaaaaaa
B26: http://ec2-50-19-31-202.compute-1.amazonaws.com/lost/longh1title.html | C26: 76aaaaaaaaaaaaaaaaaaaaaaaaaaaaaaaaaaaaaaaaaaaaaaaaaaaaaaaaaaaaaaaaaaaaaaaaa
B27: http://ec2-50-19-31-202.compute-1.amazonaws.com/lost/longh1.html | C27: 76aaaaaaaaaaaaaaaaaaaaaaaaaaaaaaaaaaaaaaaaaaaaaaaaaaaaaaaaaaaaaaaaaaaaaaaaa

Sheet Duplicate Title Tags
B3: Duplicate Title Tags
B5: Pages found with duplicate title tags
B6: Total Count: 18
B8: Issue Severity: Critical
B9: URL | C9: Duplicate
B10: http://ec2-50-19-31-202.compute-1.amazonaws.com/lost/Copyofmultipleh1titlemkmd.html | C10: 151asadafaaaaaaaaaaaaaaaaaaaaaaaaaaaaaaaaaaaaaaaaaaaaaaaaaaaaaaaaaaaaaaaaaaaaaaaaaaaaaaaaaaaaaaaaaaaaaaaaaaaaaaaaaaaaaaaaaasasaaaaaaaaaaaaaaaaaaadsaaaa--||TSA||--150sadafaaaaaaaaaaaaaaaaaaaaaaaaaaaaaaaaaaaaaaaaaaaaaaaaaaaaaaaaaaaaaaaaaaaaaaaaaaaaaaaaaaaaaaaaaaaaaaaaaaaaaaaaaaaaaaaaaasasaaaaaaaaaaaaaaaaaaadsaaaa--||TSA||--149sadafaaaaaaaaaaaaaaaaaaaaaaaaaaaaaaaaaaaaaaaaaaaaaaaaaaaaaaaaaaaaaaaaaaaaaaaaaaaaaaaaaaaaaaaaaaaaaaaaaaaaaaaaaaaaaaaaaasasaaaaaaaaaaaaaaaaaaadsaaa--||TSA||--20aaaaaaaaaaaaaaaaaa--||TSA||--19aaaaaaaaaaaaaaaaa
B11: http://ec2-50-19-31-202.compute-1.amazonaws.com/lost/multipleh1title.html | C11: 151asadafaaaaaaaaaaaaaaaaaaaaaaaaaaaaaaaaaaaaaaaaaaaaaaaaaaaaaaaaaaaaaaaaaaaaaaaaaaaaaaaaaaaaaaaaaaaaaaaaaaaaaaaaaaaaaaaaaasasaaaaaaaaaaaaaaaaaaadsaaaa--||TSA||--150sadafaaaaaaaaaaaaaaaaaaaaaaaaaaaaaaaaaaaaaaaaaaaaaaaaaaaaaaaaaaaaaaaaaaaaaaaaaaaaaaaaaaaaaaaaaaaaaaaaaaaaaaaaaaaaaaaaaasasaaaaaaaaaaaaaaaaaaadsaaaa--||TSA||--149sadafaaaaaaaaaaaaaaaaaaaaaaaaaaaaaaaaaaaaaaaaaaaaaaaaaaaaaaaaaaaaaaaaaaaaaaaaaaaaaaaaaaaaaaaaaaaaaaaaaaaaaaaaaaaaaaaaaasasaaaaaaaaaaaaaaaaaaadsaaa--||TSA||--20aaaaaaaaaaaaaaaaaa--||TSA||--19aaaaaaaaaaaaaaaaa
B12: http://ec2-50-19-31-202.compute-1.amazonaws.com/lost/multipleh1titlemkmd.html | C12: 151asadafaaaaaaaaaaaaaaaaaaaaaaaaaaaaaaaaaaaaaaaaaaaaaaaaaaaaaaaaaaaaaaaaaaaaaaaaaaaaaaaaaaaaaaaaaaaaaaaaaaaaaaaaaaaaaaaaaasasaaaaaaaaaaaaaaaaaaadsaaaa--||TSA||--150sadafaaaaaaaaaaaaaaaaaaaaaaaaaaaaaaaaaaaaaaaaaaaaaaaaaaaaaaaaaaaaaaaaaaaaaaaaaaaaaaaaaaaaaaaaaaaaaaaaaaaaaaaaaaaaaaaaaasasaaaaaaaaaaaaaaaaaaadsaaaa--||TSA||--149sadafaaaaaaaaaaaaaaaaaaaaaaaaaaaaaaaaaaaaaaaaaaaaaaaaaaaaaaaaaaaaaaaaaaaaaaaaaaaaaaaaaaaaaaaaaaaaaaaaaaaaaaaaaaaaaaaaaasasaaaaaaaaaaaaaaaaaaadsaaa--||TSA||--20aaaaaaaaaaaaaaaaaa--||TSA||--19aaaaaaaaaaaaaaaaa
B13: http://ec2-50-19-31-202.compute-1.amazonaws.com/lost/multipleh1titlemk.html | C13: 151asadafaaaaaaaaaaaaaaaaaaaaaaaaaaaaaaaaaaaaaaaaaaaaaaaaaaaaaaaaaaaaaaaaaaaaaaaaaaaaaaaaaaaaaaaaaaaaaaaaaaaaaaaaaaaaaaaaaasasaaaaaaaaaaaaaaaaaaadsaaaa--||TSA||--150sadafaaaaaaaaaaaaaaaaaaaaaaaaaaaaaaaaaaaaaaaaaaaaaaaaaaaaaaaaaaaaaaaaaaaaaaaaaaaaaaaaaaaaaaaaaaaaaaaaaaaaaaaaaaaaaaaaaasasaaaaaaaaaaaaaaaaaaadsaaaa--||TSA||--149sadafaaaaaaaaaaaaaaaaaaaaaaaaaaaaaaaaaaaaaaaaaaaaaaaaaaaaaaaaaaaaaaaaaaaaaaaaaaaaaaaaaaaaaaaaaaaaaaaaaaaaaaaaaaaaaaaaaasasaaaaaaaaaaaaaaaaaaadsaaa--||TSA||--20aaaaaaaaaaaaaaaaaa--||TSA||--19aaaaaaaaaaaaaaaaa
B14: http://ec2-50-19-31-202.compute-1.amazonaws.com/lost/shorth1.html | C14: Page 1 Yahoo
B15: http://ec2-50-19-31-202.compute-1.amazonaws.com/lost/ | C15: Page 1 Yahoo
B16: http://ec2-50-19-31-202.compute-1.amazonaws.com/lost/index.html | C16: Page 1 Yahoo
B17: http://ec2-50-19-31-202.compute-1.amazonaws.com/lost/longh1.html | C17: Page 1 Yahoo
B18: http://ec2-50-19-31-202.compute-1.amazonaws.com/lost/multipleh1.html | C18: Page 1 Yahoo
B19: http://ec2-50-19-31-202.compute-1.amazonaws.com/lost/page4.html?a=1&b=2&c=3&d=4&e=5&f=6&g=7 | C19: Page 4 yahoo
B20: http://ec2-50-19-31-202.compute-1.amazonaws.com/lost/page4.html | C20: Page 4 yahoo
B21: http://ec2-50-19-31-202.compute-1.amazonaws.com/lost/shorth1titlemkmd.html | C21: 19aaaaaaaaaaaaaaaaa
B22: http://ec2-50-19-31-202.compute-1.amazonaws.com/lost/Copyofshorth1titlemkmd.html | C22: 19aaaaaaaaaaaaaaaaa
B23: http://ec2-50-19-31-202.compute-1.amazonaws.com/lost/shorth1title.html | C23: 19aaaaaaaaaaaaaaaaa
B24: http://ec2-50-19-31-202.compute-1.amazonaws.com/lost/shorth1titlemk.html | C24: 19aaaaaaaaaaaaaaaaa
B25: http://ec2-50-19-31-202.compute-1.amazonaws.com/lost/longh1titlemkmd.html | C25: 151asadafaaaaaaaaaaaaaaaaaaaaaaaaaaaaaaaaaaaaaaaaaaaaaaaaaaaaaaaaaaaaaaaaaaaaaaaaaaaaaaaaaaaaaaaaaaaaaaaaaaaaaaaaaaaaaaaaaasasaaaaaaaaaaaaaaaaaaadsaaaa
B26: http://ec2-50-19-31-202.compute-1.amazonaws.com/lost/longh1titlemk.html | C26: 151asadafaaaaaaaaaaaaaaaaaaaaaaaaaaaaaaaaaaaaaaaaaaaaaaaaaaaaaaaaaaaaaaaaaaaaaaaaaaaaaaaaaaaaaaaaaaaaaaaaaaaaaaaaaaaaaaaaaasasaaaaaaaaaaaaaaaaaaadsaaaa
B27: http://ec2-50-19-31-202.compute-1.amazonaws.com/lost/longh1title.html | C27: 151asadafaaaaaaaaaaaaaaaaaaaaaaaaaaaaaaaaaaaaaaaaaaaaaaaaaaaaaaaaaaaaaaaaaaaaaaaaaaaaaaaaaaaaaaaaaaaaaaaaaaaaaaaaaaaaaaaaaasasaaaaaaaaaaaaaaaaaaadsaaaa

Sheet Missing Meta Description
B3: Missing Meta Description
B5: Pages found missing a meta description tag
B6: Total Count: 17
B8: Issue Severity: Critical
B9: URL | C9: Meta Description Tag
B10: http://ec2-50-19-31-202.compute-1.amazonaws.com/lost/ | C10: Missing
B11: http://ec2-50-19-31-202.compute-1.amazonaws.com/lost/gen500.asp | C11: Missing
B12: http://ec2-50-19-31-202.compute-1.amazonaws.com/lost/index.html | C12: Missing
B13: http://ec2-50-19-31-202.compute-1.amazonaws.com/lost/longh1.html | C13: Missing
B14: http://ec2-50-19-31-202.compute-1.amazonaws.com/lost/longh1title.html | C14: Missing
B15: http://ec2-50-19-31-202.compute-1.amazonaws.com/lost/longh1titlemk.html | C15: Missing
B16: http://ec2-50-19-31-202.compute-1.amazonaws.com/lost/multipleh1.html | C16: Missing
B17: http://ec2-50-19-31-202.compute-1.amazonaws.com/lost/multipleh1title.html | C17: Missing
B18: http://ec2-50-19-31-202.compute-1.amazonaws.com/lost/multipleh1titlemk.html | C18: Missing
B19: http://ec2-50-19-31-202.compute-1.amazonaws.com/lost/page1.html?a=1&b=2 | C19: Missing
B20: http://ec2-50-19-31-202.compute-1.amazonaws.com/lost/page2.html | C20: Missing
B21: http://ec2-50-19-31-202.compute-1.amazonaws.com/lost/page4.html | C21: Missing
B22: http://ec2-50-19-31-202.compute-1.amazonaws.com/lost/page4.html?a=1&b=2&c=3&d=4&e=5&f=6&g=7 | C22: Missing
B23: http://ec2-50-19-31-202.compute-1.amazonaws.com/lost/page5.html | C23: Missing
B24: http://ec2-50-19-31-202.compute-1.amazonaws.com/lost/shorth1.html | C24: Missing
B25: http://ec2-50-19-31-202.compute-1.amazonaws.com/lost/shorth1title.html | C25: Missing
B26: http://ec2-50-19-31-202.compute-1.amazonaws.com/lost/shorth1titlemk.html | C26: Missing

Sheet Multiple H1 Tags
B3: Multiple H1 Tags
B5: Pages found with multiple H1 tags
B6: Total Count: 5
B8: Issue Severity: Critical
B9: URL | C9: Count
B10: http://ec2-50-19-31-202.compute-1.amazonaws.com/lost/Copyofmultipleh1titlemkmd.html | C10: 5
B11: http://ec2-50-19-31-202.compute-1.amazonaws.com/lost/multipleh1.html | C11: 5
B12: http://ec2-50-19-31-202.compute-1.amazonaws.com/lost/multipleh1title.html | C12: 5
B13: http://ec2-50-19-31-202.compute-1.amazonaws.com/lost/multipleh1titlemk.html | C13: 5
B14: http://ec2-50-19-31-202.compute-1.amazonaws.com/lost/multipleh1titlemkmd.html | C14: 5

Sheet Multiple Title Tags
B3: Multiple Title Tags
B5: Pages found with multiple title tags
B6: Total Count: 4
B8: Issue Severity: Critical
B9: URL | C9: Count
B10: http://ec2-50-19-31-202.compute-1.amazonaws.com/lost/Copyofmultipleh1titlemkmd.html | C10: 5
B11: http://ec2-50-19-31-202.compute-1.amazonaws.com/lost/multipleh1title.html | C11: 5
B12: http://ec2-50-19-31-202.compute-1.amazonaws.com/lost/multipleh1titlemk.html | C12: 5
B13: http://ec2-50-19-31-202.compute-1.amazonaws.com/lost/multipleh1titlemkmd.html | C13: 5

Sheet Missing Title Tags
B3: Missing Title Tags
B5: Pages found missing a title tag
B6: Total Count: 3
B8: Issue Severity: Critical
B9: URL | C9: Title Tag
B10: http://ec2-50-19-31-202.compute-1.amazonaws.com/lost/gen500.asp | C10: Missing
B11: http://ec2-50-19-31-202.compute-1.amazonaws.com/lost/page1.html?a=1&b=2 | C11: Missing
B12: http://ec2-50-19-31-202.compute-1.amazonaws.com/lost/page5.html | C12: Missing

Sheet Missing H1 Tag
B3: Missing H1 Tag
B5: Pages found missing an H1 tag
B6: Total Count: 3
B8: Issue Severity: Critical
B9: URL | C9: H1 Tag
B10: http://ec2-50-19-31-202.compute-1.amazonaws.com/lost/gen500.asp | C10: Missing
B11: http://ec2-50-19-31-202.compute-1.amazonaws.com/lost/page1.html?a=1&b=2 | C11: Missing
B12: http://ec2-50-19-31-202.compute-1.amazonaws.com/lost/page5.html | C12: Missing

Sheet Long Title Tags
B3: Long Title Tags
B5: Pages found with title tags longer than 150 characters
B6: Total Count: 3
B8: Issue Severity: Critical
B9: URL | C9: Title Tags | D9: Character Count
B10: http://ec2-50-19-31-202.compute-1.amazonaws.com/lost/longh1title.html | C10: 151asadafaaaaaaaaaaaaaaaaaaaaaaaaaaaaaaaaaaaaaaaaaaaaaaaaaaaaaaaaaaaaaaaaaaaaaaaaaaaaaaaaaaaaaaaaaaaaaaaaaaaaaaaaaaaaaaaaaasasaaaaaaaaaaaaaaaaaaadsaaaa | D10: 151
B11: http://ec2-50-19-31-202.compute-1.amazonaws.com/lost/longh1titlemk.html | C11: 151asadafaaaaaaaaaaaaaaaaaaaaaaaaaaaaaaaaaaaaaaaaaaaaaaaaaaaaaaaaaaaaaaaaaaaaaaaaaaaaaaaaaaaaaaaaaaaaaaaaaaaaaaaaaaaaaaaaaasasaaaaaaaaaaaaaaaaaaadsaaaa | D11: 151
B12: http://ec2-50-19-31-202.compute-1.amazonaws.com/lost/longh1titlemkmd.html | C12: 151asadafaaaaaaaaaaaaaaaaaaaaaaaaaaaaaaaaaaaaaaaaaaaaaaaaaaaaaaaaaaaaaaaaaaaaaaaaaaaaaaaaaaaaaaaaaaaaaaaaaaaaaaaaaaaaaaaaaasasaaaaaaaaaaaaaaaaaaadsaaaa | D12: 151

Sheet 404s
B3: 404s
B5: Page Error found - Page Not Found - 404 Response Code
B6: Total Count: 3
B8: Issue Severity: Critical
B9: URL | C9: Response Code
B10: http://ec2-50-19-31-202.compute-1.amazonaws.com/lost/gen500.asp | C10: 404
B11: http://ec2-50-19-31-202.compute-1.amazonaws.com/lost/page1.html?a=1&b=2 | C11: 404
B12: http://ec2-50-19-31-202.compute-1.amazonaws.com/lost/page5.html | C12: 404

Sheet Multiple Meta Description
B3: Multiple Meta Description
B5: Pages found with multiple meta description tags
B6: Total Count: 2
B8: Issue Severity: Critical
B9: URL | C9: Count
B10: http://ec2-50-19-31-202.compute-1.amazonaws.com/lost/Copyofmultipleh1titlemkmd.html | C10: 4
B11: http://ec2-50-19-31-202.compute-1.amazonaws.com/lost/multipleh1titlemkmd.html | C11: 4

Sheet Short Meta Descriptions
B3: Short Meta Descriptions
B5: Pages found with meta description tag shorter than 125 characters
B6: Total Count: 2
B8: Issue Severity: Critical
B9: URL | C9: Meta Description | D9: Character Count
B10: http://ec2-50-19-31-202.compute-1.amazonaws.com/lost/Copyofshorth1titlemkmd.html | C10: 123sdaaaaaaaaaaaaaaaaaaaaaaaaaaaaaaaaaaaaaaaaaaaaaaaaaaaaaaaaaaaaaaaaaaaaaaaaaaaaaaaaaaaaaaaaaaaaaaaaaaaaaaaaaaaaaaaaaaaaaa | D10: 123
B11: http://ec2-50-19-31-202.compute-1.amazonaws.com/lost/shorth1titlemkmd.html | C11: 100asdaaaaaaaaaaaaaaaaaaaaaaaaaaaaaaaaaaaaaaaaaaaaaaaaaaaaaaaaaaaaaaaaaaaaaaaaaaaaaaaaaaaaaaaaaaaaaa | D11: 100

Sheet Duplicate Meta Description
B3: Duplicate Meta Description
B5: Pages found with duplicate meta description tags
B6: Total Count: 2
B8: Issue Severity: Critical
B9: URL | C9: Duplicate
B10: http://ec2-50-19-31-202.compute-1.amazonaws.com/lost/multipleh1titlemkmd.html | C10: 401asdfasfaaaaaaaaaaaaaaaaaaaaaaaaaaaaaaaaaaaaaaaaaaaaaaaaaaaaaaaaaaaaaaaaaaaaaaaaaaaaaaaaaaaaaaaaaaaaaaaaaaaaaaaaaaaaaaaaaaaaaaaaaaaaaaaaaaaaaaaaaaaaaaaaaaaaaaaaaaaaaaaaaaaaaaaaaaaaaaaaaaaaaaaaaaaaaaaaaaaaaaaaaaaaaaaaaaaaaaaaaaaaaaaaaaaaaaaaaaaaaaaaaaaaaaaaaaaaaaaaaaaaaaaaaaaaaaaaaaaaaaaaaaaaaaaaaaaaaaaaaaaaaaaaaaaaaaaaaaaaaaaaaaaaaaaaaaaaaaaaaaaaaaaaaaaaaaaaaaaaaaaaaaaaaaaaaaaaaaaaaaaaaaaaaaaaaaa--||TSA||--400asdfasfaaaaaaaaaaaaaaaaaaaaaaaaaaaaaaaaaaaaaaaaaaaaaaaaaaaaaaaaaaaaaaaaaaaaaaaaaaaaaaaaaaaaaaaaaaaaaaaaaaaaaaaaaaaaaaaaaaaaaaaaaaaaaaaaaaaaaaaaaaaaaaaaaaaaaaaaaaaaaaaaaaaaaaaaaaaaaaaaaaaaaaaaaaaaaaaaaaaaaaaaaaaaaaaaaaaaaaaaaaaaaaaaaaaaaaaaaaaaaaaaaaaaaaaaaaaaaaaaaaaaaaaaaaaaaaaaaaaaaaaaaaaaaaaaaaaaaaaaaaaaaaaaaaaaaaaaaaaaaaaaaaaaaaaaaaaaaaaaaaaaaaaaaaaaaaaaaaaaaaaaaaaaaaaaaaaaaaaaaaaaaaaaaaaaaa--||TSA||--125asdaaaaaaaaaaaaaaaaaaaaaaaaaaaaaaaaaaaaaaaaaaaaaaaaaaaaaaaaaaaaaaaaaaaaaaaaaaaaaaaaaaaaaaaaaaaaaaaaaaaaaaaaaaaaaaaaaaaaaaa--||TSA||--124asdaaaaaaaaaaaaaaaaaaaaaaaaaaaaaaaaaaaaaaaaaaaaaaaaaaaaaaaaaaaaaaaaaaaaaaaaaaaaaaaaaaaaaaaaaaaaaaaaaaaaaaaaaaaaaaaaaaaaaa
B11: http://ec2-50-19-31-202.compute-1.amazonaws.com/lost/Copyofmultipleh1titlemkmd.html | C11: 401asdfasfaaaaaaaaaaaaaaaaaaaaaaaaaaaaaaaaaaaaaaaaaaaaaaaaaaaaaaaaaaaaaaaaaaaaaaaaaaaaaaaaaaaaaaaaaaaaaaaaaaaaaaaaaaaaaaaaaaaaaaaaaaaaaaaaaaaaaaaaaaaaaaaaaaaaaaaaaaaaaaaaaaaaaaaaaaaaaaaaaaaaaaaaaaaaaaaaaaaaaaaaaaaaaaaaaaaaaaaaaaaaaaaaaaaaaaaaaaaaaaaaaaaaaaaaaaaaaaaaaaaaaaaaaaaaaaaaaaaaaaaaaaaaaaaaaaaaaaaaaaaaaaaaaaaaaaaaaaaaaaaaaaaaaaaaaaaaaaaaaaaaaaaaaaaaaaaaaaaaaaaaaaaaaaaaaaaaaaaaaaaaaaaaaaaaaaa--||TSA||--400asdfasfaaaaaaaaaaaaaaaaaaaaaaaaaaaaaaaaaaaaaaaaaaaaaaaaaaaaaaaaaaaaaaaaaaaaaaaaaaaaaaaaaaaaaaaaaaaaaaaaaaaaaaaaaaaaaaaaaaaaaaaaaaaaaaaaaaaaaaaaaaaaaaaaaaaaaaaaaaaaaaaaaaaaaaaaaaaaaaaaaaaaaaaaaaaaaaaaaaaaaaaaaaaaaaaaaaaaaaaaaaaaaaaaaaaaaaaaaaaaaaaaaaaaaaaaaaaaaaaaaaaaaaaaaaaaaaaaaaaaaaaaaaaaaaaaaaaaaaaaaaaaaaaaaaaaaaaaaaaaaaaaaaaaaaaaaaaaaaaaaaaaaaaaaaaaaaaaaaaaaaaaaaaaaaaaaaaaaaaaaaaaaaaaaaaaaa--||TSA||--125asdaaaaaaaaaaaaaaaaaaaaaaaaaaaaaaaaaaaaaaaaaaaaaaaaaaaaaaaaaaaaaaaaaaaaaaaaaaaaaaaaaaaaaaaaaaaaaaaaaaaaaaaaaaaaaaaaaaaaaaa--||TSA||--124asdaaaaaaaaaaaaaaaaaaaaaaaaaaaaaaaaaaaaaaaaaaaaaaaaaaaaaaaaaaaaaaaaaaaaaaaaaaaaaaaaaaaaaaaaaaaaaaaaaaaaaaaaaaaaaaaaaaaaaa

Sheet URL Appended Parameters
B3: Appended Parameters
B5: URLs found with appended parameters
B6: Total Count: 2
B8: Issue Severity: Critical
B9: URL | C9: Appended Parameter Count
B10: http://ec2-50-19-31-202.compute-1.amazonaws.com/lost/page1.html?a=1&b=2 | C10: 2
B11: http://ec2-50-19-31-202.compute-1.amazonaws.com/lost/page4.html?a=1&b=2&c=3&d=4&e=5&f=6&g=7 | C11: 7

Sheet Long Meta Descriptions
B3: Long Meta Descriptions
B5: Pages found with meta descriptions longer than 400 characters
B6: Total Count: 1
B8: Issue Severity: Critical
B9: URL | C9: Meta Descriptions | D9: Character Count
B10: http://ec2-50-19-31-202.compute-1.amazonaws.com/lost/longh1titlemkmd.html | C10: 401asdfasfaaaaaaaaaaaaaaaaaaaaaaaaaaaaaaaaaaaaaaaaaaaaaaaaaaaaaaaaaaaaaaaaaaaaaaaaaaaaaaaaaaaaaaaaaaaaaaaaaaaaaaaaaaaaaaaaaaaaaaaaaaaaaaaaaaaaaaaaaaaaaaaaaaaaaaaaaaaaaaaaaaaaaaaaaaaaaaaaaaaaaaaaaaaaaaaaaaaaaaaaaaaaaaaaaaaaaaaaaaaaaaaaaaaaaaaaaaaaaaaaaaaaaaaaaaaaaaaaaaaaaaaaaaaaaaaaaaaaaaaaaaaaaaaaaaaaaaaaaaaaaaaaaaaaaaaaaaaaaaaaaaaaaaaaaaaaaaaaaaaaaaaaaaaaaaaaaaaaaaaaaaaaaaaaaaaaaaaaaaaaaaaaaaaaaaa | D10: 401

Sheet Missing Meta Keywords
B3: Missing Meta Keywords
B5: Pages found missing a meta keyword tag
B6: Total Count: 14
B8: Issue Severity: Warning
B9: URL | C9: Meta Keywords Tag
B10: http://ec2-50-19-31-202.compute-1.amazonaws.com/lost/ | C10: Missing
B11: http://ec2-50-19-31-202.compute-1.amazonaws.com/lost/gen500.asp | C11: Missing
B12: http://ec2-50-19-31-202.compute-1.amazonaws.com/lost/index.html | C12: Missing
B13: http://ec2-50-19-31-202.compute-1.amazonaws.com/lost/longh1.html | C13: Missing
B14: http://ec2-50-19-31-202.compute-1.amazonaws.com/lost/longh1title.html | C14: Missing
B15: http://ec2-50-19-31-202.compute-1.amazonaws.com/lost/multipleh1.html | C15: Missing
B16: http://ec2-50-19-31-202.compute-1.amazonaws.com/lost/multipleh1title.html | C16: Missing
B17: http://ec2-50-19-31-202.compute-1.amazonaws.com/lost/page1.html?a=1&b=2 | C17: Missing
B18: http://ec2-50-19-31-202.compute-1.amazonaws.com/lost/page2.html | C18: Missing
B19: http://ec2-50-19-31-202.compute-1.amazonaws.com/lost/page4.html | C19: Missing
B20: http://ec2-50-19-31-202.compute-1.amazonaws.com/lost/page4.html?a=1&b=2&c=3&d=4&e=5&f=6&g=7 | C20: Missing
B21: http://ec2-50-19-31-202.compute-1.amazonaws.com/lost/page5.html | C21: Missing
B22: http://ec2-50-19-31-202.compute-1.amazonaws.com/lost/shorth1.html | C22: Missing
B23: http://ec2-50-19-31-202.compute-1.amazonaws.com/lost/shorth1title.html | C23: Missing

Sheet Short Title Tags
B3: Short Title Tags
B5: Pages found with title tag shorter than 20 characters
B6: Total Count: 12
B8: Issue Severity: Warning
B9: URL | C9: Title Tags | D9: Character Count
B10: http://ec2-50-19-31-202.compute-1.amazonaws.com/lost/ | C10: Page 1 Yahoo | D10: 12
B11: http://ec2-50-19-31-202.compute-1.amazonaws.com/lost/Copyofshorth1titlemkmd.html | C11: 19aaaaaaaaaaaaaaaaa | D11: 19
B12: http://ec2-50-19-31-202.compute-1.amazonaws.com/lost/index.html | C12: Page 1 Yahoo | D12: 12
B13: http://ec2-50-19-31-202.compute-1.amazonaws.com/lost/longh1.html | C13: Page 1 Yahoo | D13: 12
B14: http://ec2-50-19-31-202.compute-1.amazonaws.com/lost/multipleh1.html | C14: Page 1 Yahoo | D14: 12
B15: http://ec2-50-19-31-202.compute-1.amazonaws.com/lost/page2.html | C15: Page 2 YAHOO | D15: 12
B16: http://ec2-50-19-31-202.compute-1.amazonaws.com/lost/page4.html | C16: Page 4 yahoo | D16: 12
B17: http://ec2-50-19-31-202.compute-1.amazonaws.com/lost/page4.html?a=1&b=2&c=3&d=4&e=5&f=6&g=7 | C17: Page 4 yahoo | D17: 12
B18: http://ec2-50-19-31-202.compute-1.amazonaws.com/lost/shorth1.html | C18: Page 1 Yahoo | D18: 12
B19: http://ec2-50-19-31-202.compute-1.amazonaws.com/lost/shorth1title.html | C19: 19aaaaaaaaaaaaaaaaa | D19: 19
B20: http://ec2-50-19-31-202.compute-1.amazonaws.com/lost/shorth1titlemk.html | C20: 19aaaaaaaaaaaaaaaaa | D20: 19
B21: http://ec2-50-19-31-202.compute-1.amazonaws.com/lost/shorth1titlemkmd.html | C21: 19aaaaaaaaaaaaaaaaa | D21: 19

Sheet Duplicate Meta Keywords
B3: Duplicate Meta Keywords
B5: Pages found with duplicate meta keyword tags
B6: Total Count: 8
B8: Issue Severity: Warning
B9: URL | C9: Duplicate
B10: http://ec2-50-19-31-202.compute-1.amazonaws.com/lost/multipleh1titlemkmd.html | C10: 251aaaaaaaaaaaaaaaaaaaaaaaaaaaaaaaaaaaaaaaaaaaaaaaaaaaaaaaaaaaaaaaaaaaaaaaaaaaaaaaaaaaaaaaaaaaaaaaaaaaaaaaaaaaaaaaaaaaaaaaaaaaaaaaaaaaaaaaaaaaaaaaaaaaaaaaaaaaaaaaaaaaaaaaaaaaaaaaaaaaaaaaaaaaaaaaaaaaaaaaaaaaaaaaaaaaaaaaaaaaaaaaaaaaaaaaaaaaaaaaaaaaaaaaa--||TSA||--250aaaaaaaaaaaaaaaaaaaaaaaaaaaaaaaaaaaaaaaaaaaaaaaaaaaaaaaaaaaaaaaaaaaaaaaaaaaaaaaaaaaaaaaaaaaaaaaaaaaaaaaaaaaaaaaaaaaaaaaaaaaaaaaaaaaaaaaaaaaaaaaaaaaaaaaaaaaaaaaaaaaaaaaaaaaaaaaaaaaaaaaaaaaaaaaaaaaaaaaaaaaaaaaaaaaaaaaaaaaaaaaaaaaaaaaaaaaaaaaaaaaaaaa--||TSA||--80aaaaaaaaaaaaaaaaaaaaaaaaaaaaaaaaaaaaaaaaaaaaaaaaaaaaaaaaaaaaaaaaaaaaaaaaaaaaaa--||TSA||--79aaaaaaaaaaaaaaaaaaaaaaaaaaaaaaaaaaaaaaaaaaaaaaaaaaaaaaaaaaaaaaaaaaaaaaaaaaaaa
B11: http://ec2-50-19-31-202.compute-1.amazonaws.com/lost/multipleh1titlemk.html | C11: 251aaaaaaaaaaaaaaaaaaaaaaaaaaaaaaaaaaaaaaaaaaaaaaaaaaaaaaaaaaaaaaaaaaaaaaaaaaaaaaaaaaaaaaaaaaaaaaaaaaaaaaaaaaaaaaaaaaaaaaaaaaaaaaaaaaaaaaaaaaaaaaaaaaaaaaaaaaaaaaaaaaaaaaaaaaaaaaaaaaaaaaaaaaaaaaaaaaaaaaaaaaaaaaaaaaaaaaaaaaaaaaaaaaaaaaaaaaaaaaaaaaaaaaaa--||TSA||--250aaaaaaaaaaaaaaaaaaaaaaaaaaaaaaaaaaaaaaaaaaaaaaaaaaaaaaaaaaaaaaaaaaaaaaaaaaaaaaaaaaaaaaaaaaaaaaaaaaaaaaaaaaaaaaaaaaaaaaaaaaaaaaaaaaaaaaaaaaaaaaaaaaaaaaaaaaaaaaaaaaaaaaaaaaaaaaaaaaaaaaaaaaaaaaaaaaaaaaaaaaaaaaaaaaaaaaaaaaaaaaaaaaaaaaaaaaaaaaaaaaaaaaa--||TSA||--80aaaaaaaaaaaaaaaaaaaaaaaaaaaaaaaaaaaaaaaaaaaaaaaaaaaaaaaaaaaaaaaaaaaaaaaaaaaaaa--||TSA||--79aaaaaaaaaaaaaaaaaaaaaaaaaaaaaaaaaaaaaaaaaaaaaaaaaaaaaaaaaaaaaaaaaaaaaaaaaaaaa
B12: http://ec2-50-19-31-202.compute-1.amazonaws.com/lost/Copyofmultipleh1titlemkmd.html | C12: 251aaaaaaaaaaaaaaaaaaaaaaaaaaaaaaaaaaaaaaaaaaaaaaaaaaaaaaaaaaaaaaaaaaaaaaaaaaaaaaaaaaaaaaaaaaaaaaaaaaaaaaaaaaaaaaaaaaaaaaaaaaaaaaaaaaaaaaaaaaaaaaaaaaaaaaaaaaaaaaaaaaaaaaaaaaaaaaaaaaaaaaaaaaaaaaaaaaaaaaaaaaaaaaaaaaaaaaaaaaaaaaaaaaaaaaaaaaaaaaaaaaaaaaaa--||TSA||--250aaaaaaaaaaaaaaaaaaaaaaaaaaaaaaaaaaaaaaaaaaaaaaaaaaaaaaaaaaaaaaaaaaaaaaaaaaaaaaaaaaaaaaaaaaaaaaaaaaaaaaaaaaaaaaaaaaaaaaaaaaaaaaaaaaaaaaaaaaaaaaaaaaaaaaaaaaaaaaaaaaaaaaaaaaaaaaaaaaaaaaaaaaaaaaaaaaaaaaaaaaaaaaaaaaaaaaaaaaaaaaaaaaaaaaaaaaaaaaaaaaaaaaa--||TSA||--80aaaaaaaaaaaaaaaaaaaaaaaaaaaaaaaaaaaaaaaaaaaaaaaaaaaaaaaaaaaaaaaaaaaaaaaaaaaaaa--||TSA||--79aaaaaaaaaaaaaaaaaaaaaaaaaaaaaaaaaaaaaaaaaaaaaaaaaaaaaaaaaaaaaaaaaaaaaaaaaaaaa
B13: http://ec2-50-19-31-202.compute-1.amazonaws.com/lost/Copyofshorth1titlemkmd.html | C13: 79aaaaaaaaaaaaaaaaaaaaaaaaaaaaaaaaaaaaaaaaaaaaaaaaaaaaaaaaaaaaaaaaaaaaaaaaaaaaa
B14: http://ec2-50-19-31-202.compute-1.amazonaws.com/lost/shorth1titlemk.html | C14: 79aaaaaaaaaaaaaaaaaaaaaaaaaaaaaaaaaaaaaaaaaaaaaaaaaaaaaaaaaaaaaaaaaaaaaaaaaaaaa
B15: http://ec2-50-19-31-202.compute-1.amazonaws.com/lost/shorth1titlemkmd.html | C15: 79aaaaaaaaaaaaaaaaaaaaaaaaaaaaaaaaaaaaaaaaaaaaaaaaaaaaaaaaaaaaaaaaaaaaaaaaaaaaa
B16: http://ec2-50-19-31-202.compute-1.amazonaws.com/lost/longh1titlemkmd.html | C16: 251aaaaaaaaaaaaaaaaaaaaaaaaaaaaaaaaaaaaaaaaaaaaaaaaaaaaaaaaaaaaaaaaaaaaaaaaaaaaaaaaaaaaaaaaaaaaaaaaaaaaaaaaaaaaaaaaaaaaaaaaaaaaaaaaaaaaaaaaaaaaaaaaaaaaaaaaaaaaaaaaaaaaaaaaaaaaaaaaaaaaaaaaaaaaaaaaaaaaaaaaaaaaaaaaaaaaaaaaaaaaaaaaaaaaaaaaaaaaaaaaaaaaaaaa
B17: http://ec2-50-19-31-202.compute-1.amazonaws.com/lost/longh1titlemk.html | C17: 251aaaaaaaaaaaaaaaaaaaaaaaaaaaaaaaaaaaaaaaaaaaaaaaaaaaaaaaaaaaaaaaaaaaaaaaaaaaaaaaaaaaaaaaaaaaaaaaaaaaaaaaaaaaaaaaaaaaaaaaaaaaaaaaaaaaaaaaaaaaaaaaaaaaaaaaaaaaaaaaaaaaaaaaaaaaaaaaaaaaaaaaaaaaaaaaaaaaaaaaaaaaaaaaaaaaaaaaaaaaaaaaaaaaaaaaaaaaaaaaaaaaaaaaa

Sheet Multiple Meta Keywords
B3: Multiple Meta Keywords
B5: Pages found with multiple meta keyword tags
B6: Total Count: 3
B8: Issue Severity: Warning
B9: URL | C9: Count
B10: http://ec2-50-19-31-202.compute-1.amazonaws.com/lost/Copyofmultipleh1titlemkmd.html | C10: 4
B11: http://ec2-50-19-31-202.compute-1.amazonaws.com/lost/multipleh1titlemk.html | C11: 4
B12: http://ec2-50-19-31-202.compute-1.amazonaws.com/lost/multipleh1titlemkmd.html | C12: 4

Sheet URL Capitalization
B3: URL Capitalization
B5: URLs found with capital lettering
B6: Total Count: 2
B8: Issue Severity: Warning
B9: URL | C9: Capital Letter Count
B10: http://ec2-50-19-31-202.compute-1.amazonaws.com/lost/Copyofmultipleh1titlemkmd.html | C10: 1
B11: http://ec2-50-19-31-202.compute-1.amazonaws.com/lost/Copyofshorth1titlemkmd.html | C11: 1

Sheet Short H1 Tags
B3: Short H1 Tags
B5: Pages found with H1 tag shorter than 15 characters
B6: Total Count: 5
B8: Issue Severity: Info
B9: URL | C9: H1 Tags | D9: Character Count
B10: http://ec2-50-19-31-202.compute-1.amazonaws.com/lost/Copyofshorth1titlemkmd.html | C10: 14aaaaaaaaaaaa | D10: 14
B11: http://ec2-50-19-31-202.compute-1.amazonaws.com/lost/shorth1.html | C11: 14aaaaaaaaaaaa | D11: 14
B12: http://ec2-50-19-31-202.compute-1.amazonaws.com/lost/shorth1title.html | C12: 14aaaaaaaaaaaa | D12: 14
B13: http://ec2-50-19-31-202.compute-1.amazonaws.com/lost/shorth1titlemk.html | C13: 14aaaaaaaaaaaa | D13: 14
B14: http://ec2-50-19-31-202.compute-1.amazonaws.com/lost/shorth1titlemkmd.html | C14: 14aaaaaaaaaaaa | D14: 14

Sheet Short Meta Keywords
B3: Short Meta Keywords
B5: Pages found with meta keyword tag shorter than 80 characters
B6: Total Count: 3
B8: Issue Severity: Info
B9: URL | C9: Meta Keywords | D9: Character Count
B10: http://ec2-50-19-31-202.compute-1.amazonaws.com/lost/Copyofshorth1titlemkmd.html | C10: 79aaaaaaaaaaaaaaaaaaaaaaaaaaaaaaaaaaaaaaaaaaaaaaaaaaaaaaaaaaaaaaaaaaaaaaaaaaaaa | D10: 79
B11: http://ec2-50-19-31-202.compute-1.amazonaws.com/lost/shorth1titlemk.html | C11: 79aaaaaaaaaaaaaaaaaaaaaaaaaaaaaaaaaaaaaaaaaaaaaaaaaaaaaaaaaaaaaaaaaaaaaaaaaaaaa | D11: 79
B12: http://ec2-50-19-31-202.compute-1.amazonaws.com/lost/shorth1titlemkmd.html | C12: 79aaaaaaaaaaaaaaaaaaaaaaaaaaaaaaaaaaaaaaaaaaaaaaaaaaaaaaaaaaaaaaaaaaaaaaaaaaaaa | D12: 79

Sheet Remaining Urls_1 (hidden)
B3: Remaining Urls_1
B5: URLs without issues
B6: Total Count: 1
B9: PageID | C9: URL | D9: Title | E9: Meta Description | F9: Meta Keyword | G9: H1 | H9: Page Size | I9: Response Code | J9: Response Time | K9: Comments

Sheet Spidered Urls_1 (hidden)
B3: Spidered Urls_1
B5: Spidered URLs (raw data)
B6: Total Count: 22
B9: PageID | C9: URL | D9: Title | E9: Meta Description | F9: Meta Keyword | G9: H1 | H9: Page Size | I9: Response Code | J9: Response Time | K9: Comments

Sheet Report Data (hidden)
B3: User Agent: | C3: Mozilla/5.0 (compatible; Googlebot/2.1; +http://www.google.com/bot.html)
K7: Issues / Non-Issues | O7: Severity | P7: %
B8: Site Architecture Analysis Summary | K8: Issues | L8: =L10-L9 -> 22 | M8: =L8/L10 -> 1 | O8: Critical | P8: =Summary!G9/Summary!$G$12 -> 0.6384615385
K9: Non-Issues ("Remaining Urls") | L9: 0 | M9: =L9/L10 -> 0 | O9: Warning | P9: =Summary!G10/Summary!$G$12 -> 0.3
K10: Spidered ("Spidered Urls") | L10: 22 | O10: Info | P10: =Summary!G11/Summary!$G$12 -> 0.06153846154
B12: Short Desc | C12: Long Desc | D12: Number | E12: Priority | K12: Issues Only | O12: CRITICAL | Q12: WARNING | S12: INFO
B13: Spidered Urls_1 | C13: Spidered URLs (raw data) | D13: 22 | K13: Long Meta Descriptions | L13: 1 | O13: Long Meta Descriptions | Q13: Missing Meta Keywords | S13: Short H1 Tags
B14: Long Meta Descriptions | C14: Pages found with meta descriptions longer than 400 characters | D14: 1 | E14: Critical | K14: Missing Meta Keywords | L14: 14 | O14: Multiple Title Tags | Q14: Short Title Tags | S14: Short Meta Keywords
B15: Remaining Urls_1 | C15: URLs without issues | D15: 0 | K15: Multiple Title Tags | L15: 4 | O15: Long Title Tags | Q15: URL Capitalization
B16: Missing Meta Keywords | C16: Pages found missing a meta keyword tag | D16: 14 | E16: Warning | K16: Short Title Tags | L16: 12 | O16: Duplicate Title Tags | Q16: Duplicate Meta Keywords
B17: Multiple Title Tags | C17: Pages found with multiple title tags | D17: 4 | E17: Critical | K17: Long Title Tags | L17: 3 | O17: Duplicate Meta Description | Q17: Multiple Meta Keywords
B18: Short Title Tags | C18: Pages found with title tag shorter than 20 characters | D18: 12 | E18: Warning | K18: Duplicate Title Tags | L18: 18 | O18: Missing H1 Tag
B19: Long Title Tags | C19: Pages found with title tags longer than 150 characters | D19: 3 | E19: Critical | K19: Duplicate Meta Description | L19: 2 | O19: Duplicate H1 Tags
B20: Duplicate Title Tags | C20: Pages found with duplicate title tags | D20: 18 | E20: Critical | K20: URL Capitalization | L20: 2 | O20: Short Meta Descriptions
B21: Duplicate Meta Description | C21: Pages found with duplicate meta description tags | D21: 2 | E21: Critical | K21: Missing H1 Tag | L21: 3 | O21: Missing Meta Description
B22: URL Capitalization | C22: URLs found with capital lettering | D22: 2 | E22: Warning | K22: Duplicate H1 Tags | L22: 18 | O22: 404s
B23: Missing H1 Tag | C23: Pages found missing an H1 tag | D23: 3 | E23: Critical | K23: Duplicate Meta Keywords | L23: 8 | O23: Appended Parameters
B24: Duplicate H1 Tags | C24: Pages found with duplicate H1 tags | D24: 18 | E24: Critical | K24: Short Meta Descriptions | L24: 2 | O24: Missing Title Tags
B25: Duplicate Meta Keywords | C25: Pages found with duplicate meta keyword tags | D25: 8 | E25: Warning | K25: Missing Meta Description | L25: 17 | O25: Multiple Meta Description
B26: Short Meta Descriptions | C26: Pages found with meta description tag shorter than 125 characters | D26: 2 | E26: Critical | K26: 404s | L26: 3 | O26: Multiple H1 Tags
B27: Missing Meta Description | C27: Pages found missing a meta description tag | D27: 17 | E27: Critical | K27: Appended Parameters | L27: 2
B28: 404s | C28: Page Error found - Page Not Found - 404 Response Code | D28: 3 | E28: Critical | K28: Short H1 Tags | L28: 5
B29: Appended Parameters | C29: URLs found with appended parameters | D29: 2 | E29: Critical | K29: Missing Title Tags | L29: 3
B30: Short H1 Tags | C30: Pages found with H1 tag shorter than 15 characters | D30: 5 | E30: Info | K30: Multiple Meta Description | L30: 2
B31: Missing Title Tags | C31: Pages found missing a title tag | D31: 3 | E31: Critical | K31: Multiple Meta Keywords | L31: 3
B32: Multiple Meta Description | C32: Pages found with multiple meta description tags | D32: 2 | E32: Critical | K32: Multiple H1 Tags | L32: 5
B33: Multiple Meta Keywords | C33: Pages found with multiple meta keyword tags | D33: 3 | E33: Warning | K33: Short Meta Keywords | L33: 3
B34: Multiple H1 Tags | C34: Pages found with multiple H1 tags | D34: 5 | E34: Critical
B35: Short Meta Keywords | C35: Pages found with meta keyword tag shorter than 80 characters | D35: 3 | E35: Info
Z100: FALSE
